Cogmind - Beta 11 X7 @@@ ROGUE MODE // 2021.12.08 @ 19:17:09 // AFD2021/Volatile Player: kasaphescent Result: Destroyed by G-34 Mercenary with Small Laser Performance ------------- Evolutions (0) 0 Regions Visited (2) 400 Robots Destroyed (18) 90 Value Destroyed (327) 327 Prototype IDs (0) 0 Alien Tech Used (0) 0 Bonus (0) 0 TOTAL SCORE: 817 Bonus ------- None Cogmind --------- Core Integrity 0/250 Matter 200/300 Energy 99/100 System Corruption 1% Temperature Cool (6) Movement Treading (160) Location -10/Mines Parts ------- > --- POWER (1) -------- (None) > --- PROPULSION (2) --- Light Treads Light Treads > --- UTILITY (2) ------ Large Storage Unit > --- WEAPON (2) ------- Assault Rifle > --- INVENTORY (15) --- Aluminum Leg Wheel Wheel Compact Matter Pod (150) Beam Cannon Peak State ------------ > --- POWER ------------ Light Ion Engine > --- PROPULSION ------- Compact Wheel Compact Wheel > --- UTILITY ---------- Small Storage Unit Large Storage Unit > --- WEAPON ----------- Assault Rifle Light Assault Rifle > --- INVENTORY -------- Light Treads Light Treads Aluminum Leg Aluminum Leg Medium Laser Small Laser Beam Cannon Assault Rifle [Rating: 7] Favorites ----------- Power Light Ion Engine Engine Light Ion Engine Propulsion Aluminum Leg Treads Light Treads Leg Aluminum Leg Wheel Compact Wheel Utility Large Storage Unit Storage Large Storage Unit Weapon Medium Laser Energy Gun Medium Laser Ballistic Gun Assault Rifle Build | -11 -10 -10 ------- Run | Scr Mat Min Slots Evolved . | . . . Power . | . . . Propulsion . | . . . Utility . | . . . Weapon . | . . . Parts Attached 16 | 6 3 7 Power 2 | 1 1 . Engine 2 | 1 1 . Core . | . . . Reactor . | . . . Propulsion 6 | 2 . 4 Treads 2 | . . 2 Leg 2 | . . 2 Wheel 2 | 2 . . Hover . | . . . Flight . | . . . Utility 2 | 1 1 . Device . | . . . Storage 2 | 1 1 . Processor . | . . . Hackware . | . . . Protection . | . . . Artifact . | . . . Weapon 6 | 2 1 3 Energy Gun 3 | 1 . 2 Energy Cannon . | . . . Ballistic Gun 3 | 1 1 1 Ballistic Cannon . | . . . Launcher . | . . . Special Weapon . | . . . Impact Weapon . | . . . Slashing Weapon . | . . . Piercing Weapon . | . . . Special Melee Weapon . | . . . Unidentified Prototypes . | . . . Parts Lost 9 | . 1 8 Power 2 | . 1 1 Propulsion 3 | . . 3 Utility . | . . . Weapon 4 | . . 4 Highest Loss Streak 5 | . 1 5 Average Slot Usage (%) 72 | . 85 69 Engine 3 | . 14 . Treads 1 | . . 1 Leg 19 | . . 24 Wheel 6 | . 28 1 Storage 14 | . 14 14 Energy Gun 19 | . . 23 Ballistic Gun 7 | . 28 2 Naked Turns . | . . . Heaviest Build 31 | 11 31 26 Greatest Support 32 | 32 32 32 Greatest Overweight (x) 2 | . . 2 Average Overweight (x) . | . . . Largest Inventory Capacity 15 | 8 15 15 Average Capacity 13 | 6 8 15 Most Carried 9 | 6 9 9 Average Carried 6 | 3 5 6 Final Capacity 15 | 8 15 15 Final Carried 8 | 6 8 5 Class Distribution -------------------- 100% | Mutant Dominant Class ---------------- Mutant | -10/Materials Mutant | -10/Mines Resources | -11 -10 -10 ----------- Run | Scr Mat Min Matter Collected 335 | 176 95 64 Remotely . | . . . Salvage Created 421 | . 183 238 Parts 32 | . 14 18 Haulers Intercepted . | . . . Recyclers Shooed 1 | . 1 . Parts Field Recycled . | . . . Retrieved Matter . | . . . Parts Self-Destructed . | . . . Prevented . | . . . Kills | -11 -10 -10 ------- Run | Scr Mat Min Combat Hostiles Destroyed 14 | . 5 9 Guns 8 | . 3 5 AOE 6 | . 2 4 Classes Destroyed 4 | . 3 1 Tunneler 3 | . . 3 Recycler 1 | . 1 . Swarmer 9 | . 3 6 Grunt 5 | . 2 3 Best Kill Streak 6 | . 3 6 Combat Bots Only 6 | . 3 6 Max Kills in Single Turn 5 | . 3 5 Gunslinging . | . . . Exploded 4 | . 2 4 Melee . | . . . Uniques/NPCs Destroyed . | . . . Combat | -11 -10 -10 -------- Run | Scr Mat Min Damage Taken 1057 | . 150 907 Core 253 | . 41 212 Absorbed by Shields . | . . . Core Remaining (%) 100 | 100 . . Volleys Fired 38 | . 10 28 Largest 2 | . 2 2 Hottest 90 | . 40 90 Shots Fired 68 | . 20 48 Gun 68 | . 20 48 Cannon . | . . . Launcher . | . . . Special . | . . . Kinetic 42 | . 20 22 Thermal 26 | . . 26 Explosive . | . . . Electromagnetic . | . . . Robot Hit Streak 8 | . 8 6 Robot Miss Streak 2 | . 1 2 Penetration Max . | . . . Secondary Targets 1 | . 1 . Max Gunslinging Chain 1 | . 1 . Shots Hit Robots 47 | . 16 31 Core Hits 26 | . 10 16 Critical Kills . | . . . Critical Parts Destroyed 1 | . 1 . Critical Strikes 1 | . 1 . Destroy 1 | . 1 . Melee Attacks . | . . . Impact . | . . . Slashing . | . . . Piercing . | . . . Sneak Attacks . | . . . Combat Hostiles . | . . . Follow-up Attacks . | . . . Damage Inflicted 1156 | . 281 875 Guns 580 | . 159 421 Cannons . | . . . Explosions 573 | . 119 454 Melee . | . . . Ramming 3 | . 3 . Kinetic 366 | . 159 207 Thermal 619 | . 54 565 Explosive . | . . . Electromagnetic 168 | . 65 103 Impact . | . . . Slashing . | . . . Piercing . | . . . Highest Corruption 1 | . . 1 Average Corruption 1 | . . 1 Corruption Purged . | . . . Effects 3 | . . 3 Message Errors 2 | . . 2 Data Loss (minor) 1 | . . 1 Overload Shots . | . . . Overflow Damage 235 | . . 235 Projectiles . | . . . Explosions 235 | . . 235 Melee . | . . . Knockbacks . | . . . Impact . | . . . Kinetic . | . . . Secondary . | . . . Self-Inflicted Damage 209 | . 92 117 Shots 7 | . 4 3 Rammed 1 | . 1 . Targets Rammed 1 | . 1 . Kicked . | . . . Crushed . | . . . Highest Temperature 96 | . 12 96 Average Temperature 23 | . 9 24 Received Heat Transfer 330 | . 24 306 Siege Activations . | . . . Robots Corrupted . | . . . Combat Hostiles . | . . . Parts Fried 1 | . . 1 Impact Corruptions . | . . . Robots Melted . | . . . Combat Hostiles . | . . . Parts Melted 5 | . . 5 Heat Transferred 1124 | . 50 1074 Parts Sabotaged . | . . . Parts Stolen . | . . . Parts Stripped . | . . . Power Chain Reactions 2 | . 1 1 Missiles Intercepted . | . . . Alert | -11 -10 -10 ------- Run | Scr Mat Min Peak Influence . | . . . Initial 73 | . . 73 Average . | . . . Maximum Alert Level . | . . . Low Security (%) 100 | 100 100 100 Level 1 . | . . . Level 2 . | . . . Level 3 . | . . . Level 4 . | . . . Level 5 . | . . . High Security . | . . . Max Security . | . . . Squads Dispatched 2 | . 2 . Investigation . | . . . Extermination . | . . . Reinforcement 2 | . 2 . Assault . | . . . Garrison . | . . . Intercept . | . . . Construction Impeded . | . . . Haulers Reinforced . | . . . Active Scanning Responses . | . . . Cargo Convoy Interrupts . | . . . Stealth | -11 -10 -10 --------- Run | Scr Mat Min Distress Signals 2 | . . 2 Communications Jammed . | . . . Distress Signals . | . . . Times Spotted 20 | . 9 11 Peak Tracking Total 6 | . 3 6 Tactical Retreats 1 | . . 1 Traps | -11 -10 -10 ------- Run | Scr Mat Min Traps Triggered . | . . . Indirectly . | . . . Trap Hack Attempts . | . . . Triggered . | . . . Disarmed . | . . . Reprogrammed . | . . . Reused . | . . . Traps Extracted . | . . . Installed . | . . . Triggered . | . . . Machines | -11 -10 -10 ---------- Run | Scr Mat Min Machines Disabled 4 | . 4 . Max in Single Turn 4 | . 4 . Machines Sabotaged . | . . . Garrisons Compromised . | . . . Overloaded Fab Kills . | . . . Fab Network Shutdowns . | . . . Hacking | -11 -10 -10 --------- Run | Scr Mat Min Machines Accessed . | . . . Terminals . | . . . Fabricators . | . . . Repair Stations . | . . . Recycling Units . | . . . Scanalyzers . | . . . Garrison Access . | . . . Total Hacks . | . . . Successful . | . . . Failed . | . . . Catastrophic . | . . . Database Lockouts . | . . . Manual . | . . . Terminals . | . . . Fabricators . | . . . Repair Stations . | . . . Recycling Units . | . . . Scanalyzers . | . . . Garrison Access . | . . . Terminal Hacks . | . . . Fabricator Hacks . | . . . Repair Station Hacks . | . . . Recycling Unit Hacks . | . . . Scanalyzer . | . . . Garrison Access Hacks . | . . . Unauthorized Hacks . | . . . Terminals . | . . . Fabricators . | . . . Repair Stations . | . . . Recycling Units . | . . . Scanalyzers . | . . . Garrison Access . | . . . Data Cores Recovered . | . . . Used . | . . . Hacking Detections . | . . . Full Trace Events . | . . . Feedback Events . | . . . Feedback Blocked . | . . . Robot Schematics Acquired . | . . . Robots Built . | . . . Matter . | . . . Time . | . . . Total Robot Build Rating . | . . . Part Schematics Acquired . | . . . Parts Built . | . . . Matter . | . . . Time . | . . . Total Part Build Rating . | . . . Parts Repaired . | . . . Time . | . . . Parts Recycled . | . . . Recycled Matter . | . . . Retrieved Matter . | . . . Retrieved Components . | . . . Parts Scanalyzed . | . . . Part Schematics Acquired . | . . . Parts Damaged . | . . . Bothacking | -11 -10 -10 ------------ Run | Scr Mat Min Used RIF Installer . | . . . Robots Hacked . | . . . Non-combat . | . . . Combat . | . . . Robot Hacks Applied . | . . . Relay Couplers Released . | . . . Robots Rewired . | . . . Allies Hacked . | . . . Hacks Repelled . | . . . Allies | -11 -10 -10 -------- Run | Scr Mat Min Total Allies . | . . . Largest Group . | . . . Highest-Rated Group . | . . . Highest-Rated Ally . | . . . Total Orders . | . . . Ally Attacks . | . . . Total Damage . | . . . Kills . | . . . Allies Corrupted . | . . . Allies Melted . | . . . Intel | -11 -10 -10 ------- Run | Scr Mat Min Robot Analysis Total . | . . . Derelict Logs Recovered 1 | . . 1 Drone Launches . | . . . Drone Recoveries . | . . . Exploration | -11 -10 -10 ------------- Run | Scr Mat Min Turns Passed 870 | 56 158 656 Spaces Moved 274 | 42 116 116 Core 1 | 1 . . Treads . | . . . Legs 84 | . . 84 Wheels 189 | 41 116 32 Hover . | . . . Flight . | . . . Fastest Speed 50 | 50 100 100 Average Speed 130 | 98 100 172 Slowest Speed 280 | 100 100 280 Overloaded Moves . | . . . Propulsion Burnouts . | . . . Robots Hopped . | . . . Cave-ins Triggered . | . . . Exploration Rate (%) 19 | 3 32 23 Regions Visited 2 Branch Regions 1 Pre-discovered Areas . | . . . Known Exits Taken . | . . . Unknown Exits Taken 2 | 1 1 . Scrap Searched 1 | . . 1 Spaces Dug . | . . . Terrain Destroyed 76 | . 30 46 Melee . | . . . Projectile . | . . . AOE 76 | . 30 46 Terrain Rammed . | . . . Walls Destroyed . | . . . Machines Disabled . | . . . Actions | -11 -10 -10 --------- Run | Scr Mat Min Total 718 | 53 140 525 Wait 373 | . 2 371 Move 272 | 41 115 116 Hop . | . . . Pick Up 14 | 6 5 3 Fast Attach 7 | 6 1 . Attach 7 | . 1 6 Detach 1 | . 1 . Swap 2 | . 1 1 Drop 3 | . 3 . Fire 38 | . 10 28 Melee . | . . . Ram 1 | . 1 . Kick . | . . . Crush . | . . . Escape Stasis . | . . . Rewire . | . . . Trap . | . . . Miscellaneous . | . . . Route ------- -11/Scrapyard -10/Materials -10/Mines History --------- Turn | Location | Event 19 | -11/Scrapyard | Discovered new exit (range 16) 57 | -11/Scrapyard | Entered Materials 190 | -10/Materials | Discovered new exit (range 15) 215 | -10/Materials | Entered Mines 280 | -10/Mines | Met a Derelict bent on vengeance 284 | -10/Mines | Lost 5 parts (1p2n2w) 287 | -10/Mines | Learned 2 Materials zone layouts 305 | -10/Mines | Build established: Mutant 400 | -10/Mines | Excavation squad dispatched 400 | -10/Mines | A large section of the Mines collapsed 650 | -10/Mines | Excavation squad dispatched 799 | -10/Mines | Core integrity fell below 50% 831 | -10/Mines | Core integrity fell below 20% 871 | -10/Mines | Destroyed by G-34 Mercenary with Small Laser Last Messages --------------- 00803_ G-34 Mercenary heat short circuits Heat Sink. 00804_ Acquired 4 matter. 00815_ Aluminum Leg destroyed. 00818_ T-07 Excavator is excavating. 00819_ G-34 Mercenary overheating. 00822_ Aluminum Leg melted. 00822_ Ion Engine melted. 00822_ Sml. Laser melted. 00822_ Aluminum Leg melted. 00822_ G-34 Mercenary destroyed. 00822_ T-07 Excavator is excavating. 00829_ G-34 Mercenary heat damages Ion Engine. 00831_ T-07 Excavator is excavating. 00831_ G-34 Mercenary destroyed. 00835_ T-07 Excavator is excavating. 00849_ T-07 Excavator destroyed. 00851_ G-34 Mercenary destroyed. 00854_ Med. Laser destroyed. 00856_ T-07 Excavator is excavating. 00867_ T-07 Excavator destroyed. Map ----- +----------------------------------------------------+ | ????????????####?##"" [ #?????????????????? | | ???????????## ### #?????????????????? | | ???????????# ## ! #####?##???????????? | | ???????????? ## ### ## ##??????????? | | ????????????# ## ### #??????????? | | ???????????## ## ! ##? #??????????? | | ??????????## ## %! "## ##?????????? | | ?????????## ######## ### ### #?????????? | | ?????????# ##????# #?# ### #?????????? | | ?????????# ###### ### ## #??????????? | | ?????????# #???????????? | | ?????????# ### ########### ####???????????? | | ?????????# #?# #?????????## ##??????????????? | | ?????????## ##?# #??????????####???????????????? | | ??????????####??# #?????????????????????????????? | | ????????????????# #?????????????????????????????? | | ????????????????# #?????????????????????????????? | | ????????????????# #?????????????????????????????? | | ???????????????## #?????????????????????????????? | | ???????????????# #?????????????????????????????? | | ???????????????# ##???####??????????????????????? | | ???????????????# #??### ####???????????????????? | | ??????????????## #?## ####??????????????????? | | ?????????????## #?# ###????????????????? | | ?????????????# #### ;##???????????????? | | ?????????????# # @% %= =$#????????????? | | ?????????????## # ! = !%=#????????????? | | ??????????????# g =; #;# #????????????? | | ??????????????# | ## ; ##??????????????? | | ???????????? ## =% #?#; [; #???????????????? | | ??????????? ???## #??; = ;##???????????????? | | ?????????????????## ###??; #????????????????? | | ??????????????????### ##???? ;#???????????????? | | ????????????????????# #????? = #???????????????? | | ???????????????????? #????? % #???????????????? | | ????????????????????###??????! ???????????????? | | ????????????????????????????? ??????????????? | | ????????????????????????????? ##??????????????? | | ????????????????????????????? #????????????????? | | ?????????????????????????????????????????????????? | | ?????????????????????????????????????????????????? | | ?????????????????????????????????????????????????? | | ?????????????????????????????????????????????????? | | ?????????????????????????????????????????????????? | | ?????????????????????????????????????????????????? | | ?????????????????????????????????????????????????? | | ?????????????????????????????????????????????????? | | ?????????????????????????????????????????????????? | | ?????????????????????????????????????????????????? | | ?????????????????????????????????????????????????? | +----------------------------------------------------+ Best States ------------- Heat Dissipation 25 Energy Generation 10 Energy Capacity 125 Matter Stores 300 Matter Capacity 300 Sight Range 16 Terrain Scan Density 10 Evasion (%) 45 Recoil Reduction 2 Item Schematics ----------------- None Robot Schematics ------------------ None Fabricated ------------ Nothing Alien Tech Used ----------------- None Achievements -------------- None Challenges ------------ None Game ------ Seed MinesnifferMappingFlail Manual? 0 Play Time 00:10:25 Cumulative 178.0 hours Start 2021.12.08 @ 19:05:35 End 2021.12.08 @ 19:17:09 Sessions 1 Manual Loads 0 Difficulty Rogue Special Mode AFD2021/Volatile Game No. 128 Rogue 128 Adventurer 0 Explorer 0 Win Type - Total 3 Types 3/0/0/0/0/0/0/0/0 Lore% 57 Gallery% 75 Achievement% 52 Wizard Run 0 Options --------- ASCII 0 Keyboard 1 Movement Numpad Keybinds 0 Fullscreen 1 Font 18/SmallcapsGlow Map View 76x50 Tactical HUD 1 Map Filters NONE Filters NONE Steam 1 RUN: 547331ef-9510-4810-ba5a-e4a38f4d5aaf